bitfinex/quotes_ETHUSD_20251230
["timestamp","ask_amount","ask_price","bid_price","bid_amount"]
[1767067959503,3.39316616,2947.1,2946.2,0.001]
[1767067959504,12.12409767,2947.0,2946.2,0.001]
[1767067959700,12.12409767,2947.0,2946.2,2.3836]
[1767067959701,0.39141441,2947.0,2946.2,2.3836]
[1767067959899,0.89,2946.9,2946.2,2.3836]
[1767067961022,9.31330437,2946.9,2946.1,0.001]
[1767067961330,12.70677207,2946.9,2945.9,2.3836]
[1767067961534,0.97251297,2946.8,2945.9,2.3836]
[1767067962347,5.02983667,2946.7,2945.9,2.3836]
[1767067963045,5.02983667,2946.5,2945.9,0.001]
[1767067963203,5.02983667,2946.3,2945.8,0.001]
[1767067963409,11.81729759,2946.7,2945.8,2.3836]
[1767067963707,11.81729759,2946.7,2945.7,2.3826]
[1767067963708,3.39373046,2946.7,2945.7,2.3826]
[1767067963944,0.39141441,2947.0,2946.3,2.3826]
[1767067963945,0.891,2947.0,2946.3,2.3826]
[1767067964227,0.891,2947.1,2946.4,0.03393972]
[1767067964399,0.891,2947.1,2946.3,2.3826]
[1767067964400,0.891,2947.2,2946.5,2.3826]
[1767067964602,0.03428249,2947.1,2946.5,2.3826]
[1767067968632,0.03428249,2947.1,2946.3,2.2556]
[1767067968814,0.03428249,2947.1,2946.3,1.06795998]
[1767067969007,0.03428249,2947.1,2946.4,2.2556]
[1767067971039,3.4274805,2947.1,2946.4,2.2556]
[1767067972038,3.4274805,2947.1,2946.1,3.39430887]
[1767067972039,5.02983667,2947.0,2946.1,2.2556]
[1767067972338,0.88001421,2946.9,2946.1,5.64990099]
[1767067972506,0.88001421,2946.9,2946.3,2.2556]
[1767067972507,0.03428249,2946.9,2946.3,2.2556]
[1767067972702,0.03428249,2947.0,2946.2,3.39418228]
[1767067973017,0.03428249,2947.0,2946.1,5.64989225]
[1767067973536,0.03428249,2947.0,2946.1,2.2556]
[1767067973727,0.03428249,2947.0,2946.1,5.64991763]
[1767067974112,0.03428249,2947.0,2946.2,2.2556]
[1767067974333,3.42746557,2947.1,2946.2,2.2556]
[1767067975909,0.03428249,2947.1,2946.2,2.2556]
[1767067976723,3.42745499,2947.1,2946.2,2.2556]
[1767067980124,3.42945499,2947.1,2946.2,2.2556]
[1767067980927,0.4320455,2947.0,2946.3,2.273]
[1767067981131,0.03428249,2946.9,2946.3,2.273]
[1767067981531,0.03628249,2947.1,2946.3,2.273]
[1767067982444,0.002,2947.1,2946.7,2.273]
[1767067983137,0.002,2947.1,2946.8,2.273]
[1767067987543,0.002,2947.3,2946.8,2.273]
[1767067988342,0.002,2947.1,2946.8,2.273]
[1767067989256,0.891,2947.7,2946.8,3.39349462]
[1767067989464,0.92528249,2947.7,2947.2,2.273]
[1767067989829,0.03428249,2947.7,2947.2,2.273]
[1767067990028,0.891,2947.8,2947.2,2.273]
[1767067991364,0.03428249,2947.9,2947.2,2.273]
[1767067991547,0.92528249,2947.9,2947.2,2.5003]
[1767067991939,3.42653027,2947.9,2947.2,2.5003]
[1767067992146,4.31753027,2947.9,2947.2,2.273]
[1767067995970,4.31953027,2947.9,2947.2,2.273]
[1767067998771,0.92728249,2947.9,2947.2,2.273]
[1767067998971,4.31953251,2947.9,2947.2,2.273]
[1767067999174,0.03628249,2947.9,2947.2,2.273]
[1767067999370,0.03628249,2947.9,2947.2,2.83962805]
[1767068000350,3.42854049,2947.9,2947.2,2.83962805]
[1767068000669,3.42854049,2947.9,2947.2,2.273]
[1767068004275,0.03628249,2947.9,2947.2,2.273]
[1767068004491,0.002,2947.9,2947.3,2.46892935]
[1767068004775,0.002,2947.9,2947.4,0.58619799]
[1767068004940,0.002,2947.9,2947.5,2.435]
[1767068013090,0.002,2947.9,2947.5,5.82770566]
[1767068013262,0.002,2947.9,2947.6,2.435]
[1767068013582,0.002,2948.1,2947.5,3.39270566]
[1767068013876,0.002,2948.1,2947.6,2.83289036]
[1767068017063,0.002,2948.1,2947.7,2.435]
[1767068017289,0.002,2948.3,2947.9,2.435]
[1767068019556,0.002,2948.5,2947.9,2.435]
[1767068019758,0.002,2948.5,2947.9,2.46892244]
[1767068020063,0.002,2948.5,2948.1,2.435]
[1767068020979,0.89,2948.8,2948.1,2.435]
[1767068021762,0.03428249,2948.7,2948.1,2.435]
[1767068022586,0.002,2948.3,2948.1,2.435]
[1767068023580,0.03428249,2948.7,2948.0,0.58612319]
[1767068023776,0.03428249,2948.7,2948.1,2.435]
[1767068024990,0.89,2948.8,2948.1,2.46892015]
[1767068025194,0.03428249,2948.7,2948.2,2.435]
[1767068025413,0.03428249,2949.0,2948.2,2.435]
[1767068025907,0.92628249,2949.1,2948.2,2.435]
[1767068028500,6.78195998,2949.0,2948.2,2.435]
[1767068028803,0.80714783,2948.9,2948.2,2.435]
[1767068030969,3.39120998,2948.8,2948.2,2.435]
[1767068031302,0.03428249,2948.7,2948.2,2.435]
[1767068035131,3.4256312,2948.7,2948.2,2.435]
[1767068035427,0.03428249,2948.7,2948.2,2.435]
[1767068035605,0.79323337,2948.7,2948.2,2.435]
[1767068037131,0.03428249,2948.7,2948.2,2.435]
[1767068037293,3.42549247,2948.8,2948.2,2.435]
[1767068037493,0.002,2948.7,2948.2,2.435]
[1767068039393,0.002,2948.7,2947.9,2.4448]
[1767068039593,0.03628249,2948.7,2947.9,2.87304452]
[1767068041528,3.42763123,2948.7,2947.9,2.87304452]
[1767068041920,0.03628249,2948.7,2947.9,2.87304452]
[1767068043434,3.42762534,2948.7,2947.9,2.87304452]
[1767068045139,3.42762534,2948.7,2947.9,2.87404452]
[1767068045438,0.03628249,2948.7,2947.9,2.87404452]
[1767068045803,0.03628249,2948.7,2948.0,3.03594022]
[1767068046232,0.03628249,2948.7,2948.0,0.71564022]
[1767068046424,0.03628249,2948.7,2948.1,2.3203]
[1767068058620,0.002,2948.7,2948.1,2.3203]
[1767068058819,0.03628249,2948.7,2948.1,2.3203]
[1767068068031,0.002,2948.7,2948.1,2.3203]
[1767068068367,0.03628249,2948.7,2948.2,2.2901]
[1767068069171,0.002,2948.7,2948.2,2.2901]
[1767068069459,0.03628249,2948.7,2948.2,2.2901]
[1767068070363,0.002,2948.7,2948.2,2.2901]
[1767068070536,0.03628249,2948.7,2948.2,2.2901]
[1767068070737,0.002,2948.7,2948.2,2.2901]
[1767068071068,0.03628249,2948.7,2948.2,2.2901]
[1767068071234,0.002,2948.7,2948.2,2.2901]
[1767068071435,0.03628249,2948.7,2948.2,2.2901]
[1767068071655,0.002,2948.7,2948.2,2.2901]
[1767068071930,0.03628249,2948.7,2948.2,2.2901]
[1767068072134,0.002,2948.7,2948.2,2.2901]
[1767068072361,0.03628249,2948.7,2948.2,2.2901]
[1767068072553,0.002,2948.7,2948.2,2.2901]
[1767068072855,0.03628249,2948.7,2948.2,2.2901]
[1767068073154,0.002,2948.7,2948.2,2.2901]
[1767068073365,0.03628249,2948.7,2948.2,2.2901]
[1767068073658,0.002,2948.7,2948.2,2.2901]
[1767068073854,0.03628249,2948.7,2948.2,2.2901]
[1767068074156,0.002,2948.7,2948.2,2.2901]
[1767068074333,0.03628249,2948.7,2948.2,2.2901]
[1767068074546,0.002,2948.7,2948.2,2.2901]
[1767068074845,0.03628249,2948.7,2948.2,2.2901]
[1767068075666,0.002,2948.7,2948.2,2.2901]
[1767068075965,3.3931912,2948.9,2948.2,0.41523903]
[1767068075966,0.002,2948.9,2948.2,0.41523903]
[1767068076171,0.002,2948.9,2948.3,2.2901]
[1767068081672,5.02643109,2948.8,2948.1,2.3816]
[1767068083052,5.02643109,2948.8,2948.1,2.3826]
[1767068083255,3.39132499,2948.7,2948.1,2.3826]
[1767068084872,4.57241283,2948.7,2948.1,2.3826]
[1767068091275,4.57441283,2948.7,2948.1,2.3826]
[1767068093187,5.02643109,2948.6,2948.1,2.3826]
[1767068095262,8.41793277,2948.6,2948.1,2.3826]
[1767068095783,3.39150168,2948.6,2948.1,2.3826]
[1767068096399,4.23349496,2948.6,2948.1,2.3826]
[1767068099089,0.84199328,2948.6,2948.1,2.3826]
[1767068100575,4.23343334,2948.6,2948.1,2.3826]
[1767068100780,0.84199328,2948.6,2948.1,2.3826]
[1767068101671,0.002,2948.7,2948.1,2.3826]
[1767068102091,3.39312348,2948.9,2948.2,2.4535]
[1767068102297,0.002,2948.9,2948.2,2.4535]
[1767068104097,0.892,2949.1,2948.3,2.4348]
[1767068104098,0.002,2949.1,2948.3,2.4348]
[1767068104396,0.002,2949.1,2948.3,2.68025]
[1767068105627,5.02643109,2948.9,2948.3,2.4348]
[1767068105777,5.02643109,2948.5,2948.1,2.4358]
[1767068105980,8.41775693,2948.7,2948.1,2.4358]
[1767068106181,0.84177569,2948.6,2948.1,2.4358]
[1767068106385,3.39132584,2948.7,2948.1,2.4358]
[1767068111709,3.39120998,2948.8,2948.1,2.4358]
[1767068115009,3.39320998,2948.8,2948.1,2.4358]
[1767068141254,0.002,2949.1,2948.2,2.375]
[1767068141423,0.002,2949.2,2948.4,2.375]
[1767068142338,0.002,2949.4,2948.6,2.375]
[1767068142543,0.002,2949.5,2948.6,2.375]
[1767068142922,3.39242761,2949.5,2948.6,2.375]
[1767068144837,0.002,2949.5,2948.7,2.375]
[1767068145021,0.002,2949.5,2948.9,2.375]
[1767068155947,0.002,2949.5,2948.9,2.376]
[1767068164422,3.41258916,2949.7,2949.0,2.4373]
[1767068165723,0.02041094,2949.7,2948.9,0.001]
[1767068165947,1.094e-05,2949.7,2949.0,2.4373]
[1767068166454,3.39018916,2949.7,2949.0,2.4373]
[1767068169150,3.39218916,2949.7,2949.0,2.4373]
[1767068169344,3.39218916,2949.7,2949.0,2.68113]
[1767068171758,0.888,2949.6,2949.2,5.0228984]
[1767068171932,0.002,2949.8,2949.3,2.4373]
[1767068174067,0.892,2949.9,2949.2,2.4373]
[1767068174243,0.892,2949.9,2949.4,2.4373]
[1767068175946,0.002,2950.0,2949.4,2.2873]
[1767068176459,0.002,2949.8,2949.4,2.2873]
[1767068177243,3.3918305,2950.0,2949.4,2.2873]
[1767068178848,0.002,2950.0,2949.4,2.2873]
[1767068179049,0.002,2950.0,2949.6,2.2873]
[1767068179250,3.41014896,2950.1,2949.4,2.2873]
[1767068179952,3.38963283,2950.2,2949.4,2.2873]
[1767068181274,3.38963283,2950.2,2949.5,2.2873]
[1767068182556,3.38949807,2950.3,2949.5,2.2873]
[1767068182751,3.38949807,2950.3,2949.5,0.78930142]
[1767068182957,3.38949807,2950.3,2949.6,2.2873]
[1767068183982,0.89,2950.5,2949.7,2.2873]
[1767068183983,3.38933672,2950.5,2949.7,2.2873]
[1767068184549,6.77867344,2950.5,2949.7,2.2873]
[1767068184749,6.77867344,2950.5,2949.7,2.59496014]
[1767068184750,0.02041094,2950.4,2949.7,2.59496014]
[1767068186091,5.04330934,2950.4,2949.7,2.59496014]
[1767068187051,3.38948581,2950.3,2949.7,2.59496014]
[1767068187251,3.38925605,2950.5,2949.7,2.59496014]
[1767068187480,3.38925605,2950.5,2949.9,2.2873]
[1767068187775,6.7785121,2950.5,2949.9,2.2873]
[1767068190473,6.7785121,2950.5,2949.3,2.2873]
[1767068190692,5.0228984,2950.3,2949.3,2.2873]
[1767068191787,6.7792014,2950.2,2949.3,2.2873]
[1767068192000,6.7792014,2950.2,2949.5,2.2873]
[1767068192205,6.79961234,2950.2,2949.5,2.2873]
[1767068193402,0.89,2950.1,2949.5,2.2873]
[1767068194515,3.3898305,2950.0,2949.5,2.2873]
[1767068204610,3.38866897,2950.0,2949.5,2.2873]
[1767068206309,13.07276803,2950.0,2949.5,2.2873]
[1767068206503,13.09317897,2950.0,2949.5,2.2873]
[1767068208707,9.70334847,2950.0,2949.5,2.2873]
[1767068209102,13.09317897,2950.0,2949.5,2.2873]
[1767068209707,13.09317897,2950.0,2949.5,2.2883]
[1767068211086,13.09317897,2950.0,2949.4,0.001]
[1767068214121,3.39006034,2949.8,2949.3,2.256]
[1767068216324,3.38994542,2949.9,2949.3,2.256]
[1767068218115,3.38994542,2949.9,2949.3,2.257]
[1767068219522,3.3898305,2950.0,2949.3,2.257]
[1767068221329,6.80007194,2950.0,2949.3,2.257]
[1767068221532,3.41024144,2950.0,2949.3,2.257]
[1767068221690,3.41024144,2950.0,2949.3,2.4827]
[1767068222431,5.0228984,2949.8,2949.3,2.257]
[1767068224299,8.41307089,2949.8,2949.3,2.257]
[1767068226511,3.39017249,2949.8,2949.3,2.257]
[1767068227333,8.43345837,2949.8,2949.3,0.001]
[1767068230925,3.41058343,2949.8,2949.3,0.001]
[1767068231448,4.09286881,2949.8,2949.3,0.001]
[1767068234537,4.09286881,2949.8,2949.2,2.3728]
[1767068241450,4.09486881,2949.8,2949.2,2.3728]
[1767068242852,7.4850413,2949.8,2949.2,2.3728]
[1767068243147,9.09733281,2949.8,2949.1,2.4198]
[1767068243315,1.24872957,2949.7,2949.1,2.4198]
[1767068243517,0.68428538,2949.8,2949.1,2.4198]
[1767068243855,0.002,2950.0,2949.3,2.4198]
[1767068244019,0.002,2950.2,2949.3,2.4198]
[1767068244223,3.64469904,2950.4,2949.5,2.4198]
[1767068245157,0.2573,2950.6,2949.5,2.4198]
[1767068245349,4.2791826,2950.6,2949.5,2.4198]
[1767068245563,4.2791826,2950.6,2949.7,2.4198]
[1767068245926,4.5364826,2950.6,2949.7,2.4198]
[1767068247248,3.3891826,2950.6,2949.7,2.4198]
[1767068247452,3.39102633,2950.7,2949.7,2.4198]
[1767068247828,3.39102633,2950.7,2949.7,3.39017165]
[1767068248150,3.39102633,2950.7,2949.8,2.83324391]
[1767068249243,0.002,2950.4,2949.8,2.83324391]
[1767068250653,3.39102633,2950.7,2949.8,0.41344391]
[1767068250961,3.39102633,2950.7,2949.9,2.4198]
[1767068253375,3.65032633,2950.7,2949.9,2.4198]
[1767068253534,4.44549277,2950.7,2949.9,2.4198]
[1767068255331,7.8345191,2950.7,2949.9,2.4198]
[1767068257166,4.44549277,2950.7,2949.9,2.4198]
[1767068257368,3.65032633,2950.7,2949.9,2.4198]
[1767068257573,3.65032633,2950.7,2950.0,0.01604724]
[1767068257734,3.65032633,2950.7,2950.1,2.4198]
[1767068258534,4.54032633,2950.7,2950.1,2.4198]
[1767068259273,3.38893316,2950.8,2949.8,0.41344391]
[1767068259274,3.38893553,2950.8,2950.0,2.4198]
[1767068259429,3.38893553,2950.8,2950.2,2.4198]
[1767068259873,3.65023553,2950.8,2950.2,2.4198]
[1767068260192,7.03917106,2950.8,2950.2,2.4198]
[1767068260481,3.65044119,2950.6,2950.2,2.4198]
[1767068263366,3.38914119,2950.6,2950.2,2.4198]
[1767068263544,0.2613,2950.5,2950.2,2.4198]
[1767068265780,0.2613,2950.4,2949.7,2.4198]
[1767068265966,0.2613,2950.4,2949.9,2.3682]
[1767068270301,3.65068302,2950.4,2949.9,2.3682]
[1767068270987,0.2613,2950.3,2949.9,2.3682]
[1767068274091,0.2613,2950.3,2949.9,2.3692]
[1767068279196,0.2613,2950.3,2949.8,0.31640675]
[1767068279376,0.2613,2950.3,2949.7,2.3454]
[1767068282471,0.2613,2950.3,2949.9,0.001]
[1767068283595,3.39117712,2950.6,2949.9,2.3464]
[1767068288505,8.41157888,2950.6,2949.9,2.3464]
[1767068291578,5.02040176,2950.4,2949.8,0.001]
[1767068291774,5.86155965,2950.4,2949.8,0.001]
[1767068294088,5.86155965,2950.4,2949.8,2.3464]
[1767068294905,0.84115789,2950.4,2949.8,2.3464]
[1767068295201,8.41157888,2950.6,2949.8,2.3464]
[1767068296104,0.002,2950.6,2949.8,2.3464]
[1767068304812,3.39107134,2950.7,2949.8,0.001]
[1767068305012,3.39107134,2950.7,2949.9,2.3946]
[1767068306119,6.78014268,2950.7,2949.9,2.3946]
[1767068306291,6.2914562,2950.6,2949.9,2.3946]
[1767068306896,9.68060563,2950.6,2949.9,2.3946]
[1767068307192,6.2914562,2950.6,2949.9,2.3946]
[1767068307492,1.27105444,2950.6,2949.9,2.3946]
[1767068309420,4.6601985,2950.6,2949.9,2.3946]
[1767068309622,0.46621985,2950.5,2949.9,2.3946]
[1767068310615,1.27105444,2950.6,2949.9,2.3946]
[1767068318228,4.66021077,2950.6,2949.9,2.3946]
[1767068320020,5.02040176,2950.5,2949.9,2.3946]
[1767068322034,5.02040176,2950.5,2949.9,2.3956]
[1767068323362,4.66021077,2950.6,2949.9,2.3956]
[1767068323529,0.97030235,2950.5,2949.9,2.3956]
[1767068327957,9.37997948,2950.5,2949.9,2.3956]
[1767068329955,5.99070411,2950.5,2949.9,2.3956]
[1767068330143,9.379979,2950.5,2949.9,2.3956]
[1767068334560,5.02040176,2950.3,2949.9,2.3956]
[1767068334766,5.02040176,2950.3,2949.9,0.001]
[1767068335055,5.99070411,2950.5,2949.9,2.3419]
[1767068335754,0.97030235,2950.5,2949.9,2.3419]
[1767068335940,0.002,2950.6,2949.9,2.3419]
[1767068338065,0.892,2950.6,2949.9,2.3419]
[1767068338231,0.002,2950.6,2949.9,2.3419]
[1767068348766,0.002,2950.6,2950.1,2.443]
[1767068349374,0.002,2950.7,2950.1,2.443]
[1767068350367,0.002,2950.7,2950.1,3.02977711]
[1767068354374,0.002,2950.7,2950.1,2.443]
[1767068354675,0.002,2950.7,2949.9,2.444]
[1767068362675,6.77828238,2950.6,2949.8,0.001]
[1767068362882,4.27914119,2950.6,2949.8,2.4754]
[1767068363881,3.38914119,2950.6,2949.8,2.4754]
[1767068364180,0.76701939,2950.5,2949.8,2.4754]
[1767068364887,3.38937093,2950.4,2949.8,2.4754]
[1767068371289,4.15632577,2950.5,2949.8,2.4754]
[1767068373194,0.76701939,2950.5,2949.8,2.4754]
[1767068374267,3.39119144,2950.6,2949.8,2.4754]
[1767068375594,0.002,2950.6,2949.8,2.4754]
[1767068377081,0.002,2950.6,2950.0,2.4744]
[1767068384907,0.002,2950.6,2950.1,0.03389715]
[1767068385107,0.002,2950.6,2950.2,2.4744]
[1767068385476,0.34129115,2950.6,2950.2,2.4744]
[1767068386582,0.002,2950.6,2950.2,2.4744]
[1767068391710,0.002,2950.7,2949.9,0.89]
[1767068392005,0.002,2950.7,2950.0,2.3201]
[1767068397516,0.002,2950.7,2950.0,2.3211]
[1767068399415,0.002,2950.9,2950.1,2.4627]
[1767068399718,0.002,2950.9,2950.3,2.4627]
[1767068402230,0.002,2951.0,2950.4,0.0338937]
[1767068402433,0.002,2951.2,2950.6,2.4627]
[1767068402831,0.002,2951.6,2950.6,2.4627]
[1767068403033,0.002,2951.6,2950.5,0.89]
[1767068403034,3.387077,2952.4,2951.4,2.4627]
[1767068403199,3.387077,2952.4,2951.3,5.01979337]
[1767068403200,0.13557276,2952.5,2951.7,2.4627]
[1767068403405,3.56351267,2952.8,2951.7,2.4627]
[1767068403607,1.01660626,2953.1,2952.3,2.4627]
[1767068403824,1.01660626,2953.1,2952.3,2.44250532]
[1767068404014,10.039535,2953.4,2952.3,2.44250532]
[1767068404216,6.77231476,2953.2,2952.3,2.44250532]
[1767068404421,16.85891094,2952.9,2951.7,2.4627]
[1767068404627,0.91041094,2952.9,2951.7,2.4627]
[1767068405127,1.01658214,2952.8,2951.7,2.4627]
[1767068405328,0.19269931,2952.7,2951.7,3.38786785]
[1767068405531,0.19269931,2952.7,2951.8,2.4627]
[1767068406130,8.40718954,2952.2,2951.2,2.4627]
[1767068406728,0.002,2952.1,2951.2,2.4627]
[1767068406931,0.84496005,2952.1,2951.2,2.4627]
[1767068408236,0.84496005,2952.1,2950.8,3.42275929]
[1767068408237,5.01979337,2951.7,2950.8,0.03388911]
[1767068408460,5.01979337,2951.4,2950.5,2.4627]
[1767068409119,1.01710257,2951.3,2950.5,2.4627]
[1767068409433,0.60368959,2951.2,2950.5,2.4627]
[1767068409740,0.02041094,2951.8,2950.7,2.4627]
[1767068409948,0.889,2951.7,2950.7,2.4627]
[1767068410153,1.01708533,2951.4,2950.7,2.4627]
[1767068410462,1.5969,2951.9,2950.9,2.4627]
[1767068410665,1.5969,2951.8,2951.0,2.4627]
[1767068411653,4.98477817,2951.7,2951.0,2.4627]
[1767068412223,1.5969,2951.7,2951.0,2.4627]
[1767068413826,3.38780494,2951.8,2951.2,2.4627]
[1767068414033,2.09615815,2951.7,2951.2,2.4627]
[1767068414726,1.5969,2951.6,2951.2,2.4627]
[1767068419354,0.49925815,2951.7,2951.2,2.4627]
[1767068419761,4.98470306,2951.8,2951.2,2.4627]
[1767068419762,1.5969,2951.8,2951.2,2.4627]
[1767068420066,3.38756967,2952.0,2951.4,2.3248]
[1767068420362,3.38942217,2952.1,2951.6,2.3248]
[1767068420539,4.98632217,2952.1,2951.6,2.3248]
[1767068420730,5.57385439,2952.1,2951.6,2.3248]
[1767068421143,1.5969,2952.0,2951.6,2.3248]
[1767068421655,1.5969,2951.9,2951.6,2.3248]
[1767068423058,3.38762955,2952.0,2951.6,2.3248]
[1767068424849,3.38762955,2952.0,2951.6,2.30460533]
[1767068425052,0.89614822,2951.9,2951.6,2.30460533]
[1767068425247,1.6171,2951.8,2951.2,2.3248]
[1767068425568,1.6171,2951.6,2950.9,2.3248]
[1767068426137,1.6171,2951.6,2951.1,2.8248]
[1767068426329,2.51224822,2951.9,2951.4,2.3248]
[1767068426640,4.28380599,2951.9,2951.4,2.3248]
[1767068426825,2.1166,2951.8,2951.4,2.3248]
[1767068427440,3.38776682,2951.8,2951.2,2.3248]
[1767068427644,2.1166,2951.7,2951.2,2.3248]
[1767068428556,3.38776682,2951.8,2951.5,0.001]
[1767068428757,0.97881684,2951.7,2951.5,2.3258]
[1767068431373,3.38776682,2951.8,2951.5,2.3258]
[1767068431374,5.50436682,2951.8,2951.5,2.3258]
[1767068432230,2.1166,2951.8,2951.5,2.3258]
[1767068432440,0.002,2952.1,2951.5,2.3258]
[1767068432764,2.1186,2952.1,2951.5,2.3258]
[1767068433137,5.50603792,2952.1,2951.5,2.3258]
[1767068433452,5.80679792,2952.1,2951.5,2.3258]
[1767068434253,2.1166,2952.0,2951.5,2.3258]
[1767068436340,0.30276,2952.1,2951.5,2.3258]
[1767068436859,0.002,2952.1,2951.5,2.3258]
[1767068437168,3.38948889,2952.1,2951.5,2.3258]
[1767068437863,4.27619352,2952.3,2951.5,2.3258]
[1767068437864,0.889,2952.5,2951.6,2.3248]
[1767068438162,2.306,2952.4,2951.6,2.3248]
[1767068438353,2.306,2952.4,2951.7,2.3248]
[1767068439139,5.69318964,2952.3,2951.7,2.3248]
[1767068440663,2.306,2952.2,2951.6,2.3248]
[1767068441352,3.38732417,2952.2,2951.6,2.3248]
[1767068441672,5.69332417,2952.2,2951.6,2.3248]
[1767068441843,5.69332417,2952.2,2951.6,2.55748]
[1767068442169,2.306,2952.1,2951.6,2.55748]
[1767068443369,5.69342761,2952.1,2951.6,2.55748]
[1767068443670,3.38742761,2952.1,2951.6,2.3248]
[1767068443977,2.306,2952.0,2951.6,2.3248]
[1767068444768,5.01518413,2952.0,2951.5,0.001]
[1767068444956,2.306,2951.9,2951.5,0.001]
[1767068446960,2.306,2951.9,2951.5,2.4048]
[1767068447577,2.306,2951.9,2951.5,0.001]
[1767068448476,2.306,2951.9,2951.5,2.4048]
[1767068448645,3.38757844,2952.0,2951.5,2.4048]
[1767068449777,10.83605106,2952.1,2951.5,2.4048]
[1767068451048,5.82086693,2952.1,2951.5,2.4048]
[1767068453257,2.4334,2952.1,2951.7,2.4038]
[1767068454179,0.002,2952.1,2951.7,2.4038]
[1767068454673,2.4334,2952.1,2951.7,2.4038]
[1767068455951,5.67753994,2952.3,2951.6,2.4836]
[1767068456261,2.2903,2952.2,2951.6,2.4836]
[1767068456462,2.2903,2952.2,2951.6,2.75655683]
[1767068457454,3.38732022,2952.2,2951.6,2.75655683]
[1767068457656,2.2903,2952.1,2951.6,2.75655683]
[1767068459887,2.2923,2952.1,2951.6,2.75655683]
[1767068461583,2.2903,2952.3,2951.6,0.27295683]
[1767068461785,5.67750987,2952.3,2951.7,2.4836]
[1767068462160,2.2903,2952.2,2951.7,2.4836]
[1767068463786,5.67765155,2952.2,2951.7,2.4836]
[1767068463984,2.2903,2952.2,2951.7,2.4836]
[1767068464686,3.38722925,2952.3,2951.7,2.4836]
[1767068464883,3.38722925,2952.3,2951.7,2.73206]
[1767068465190,3.38699214,2952.5,2951.7,2.73206]
[1767068465191,3.3869602,2952.5,2951.7,2.73206]
[1767068465370,5.6772602,2952.5,2951.7,2.73206]
[1767068465569,5.67743933,2952.4,2951.7,2.73206]
[1767068466361,0.002,2952.2,2951.7,2.73206]
[1767068466561,0.002,2952.2,2951.9,2.4836]
[1767068466786,2.2923,2952.7,2952.0,2.51747533]
[1767068466993,30.0,2952.6,2952.0,2.4836]
[1767068467373,2.2923,2952.7,2952.0,2.4836]
[1767068467561,0.002,2952.7,2952.2,2.4836]
[1767068472590,2.2923,2952.7,2952.2,2.4836]
[1767068472785,0.002,2952.7,2952.2,2.4836]
[1767068474464,2.2923,2952.7,2952.2,2.4836]
[1767068476261,2.3962,2952.6,2952.2,2.4836]
[1767068477098,2.3962,2952.6,2952.2,2.73196]
[1767068479214,5.7830572,2952.6,2952.2,2.73196]
[1767068479384,5.7830572,2952.6,2952.2,2.4836]
[1767068479888,2.3962,2952.6,2952.2,2.4836]
[1767068481229,2.3962,2952.6,2951.7,9.53691605]
[1767068481230,2.3962,2952.5,2951.7,2.451]
[1767068483305,2.3962,2952.3,2951.7,2.451]
[1767068483617,5.78320926,2952.5,2951.8,0.03387763]
[1767068483806,5.78320926,2952.5,2951.9,2.48487648]
[1767068484606,2.3962,2952.4,2951.9,2.48487648]
[1767068484825,2.3962,2952.4,2951.9,2.451]
[1767068485909,5.78331551,2952.4,2951.9,2.451]
[1767068486098,2.3962,2952.3,2951.9,2.451]
[1767068486299,2.3962,2952.3,2951.6,0.001]
[1767068486499,2.3962,2952.3,2951.7,2.451]
[1767068487591,5.78341334,2952.3,2951.7,2.451]
[1767068487795,3.38721334,2952.3,2951.7,2.451]
[1767068488023,2.3962,2952.2,2951.7,2.451]
[1767068490523,2.3962,2952.1,2951.7,2.451]
[1767068491501,2.3962,2952.1,2951.6,0.001]
[1767068491825,2.3962,2952.0,2951.6,0.001]
[1767068493133,10.0591204,2952.5,2951.6,2.452]
[1767068493313,2.3962,2952.4,2951.6,2.452]
[1767068495828,2.3962,2952.2,2951.6,2.452]
[1767068498541,5.78354936,2952.2,2951.6,2.452]
[1767068498706,2.3962,2952.1,2951.6,2.452]
[1767068500719,2.3962,2952.0,2951.6,2.452]
[1767068503846,3.38754108,2952.0,2951.6,0.001]
[1767068504017,2.3962,2951.9,2951.5,0.001]
[1767068504758,2.3962,2951.9,2951.0,2.451]
[1767068505040,2.3962,2951.6,2951.0,2.451]
[1767068505205,0.67748493,2952.0,2951.2,2.451]
[1767068505410,0.67748493,2952.0,2951.4,2.4306873]
[1767068505833,0.67748493,2952.0,2951.6,2.4781]
[1767068506035,3.09168493,2952.0,2951.6,2.4781]
[1767068506232,0.30916849,2951.9,2951.6,2.4781]
[1767068506635,2.72336849,2951.9,2950.9,2.4781]
[1767068506818,2.72336849,2951.9,2950.9,2.51198796]
[1767068507621,3.6968204,2951.9,2950.9,3.42261241]
[1767068507836,2.78388204,2951.8,2951.0,2.4781]
[1767068508814,2.78388204,2951.8,2951.2,2.4781]
[1767068509145,2.4142,2951.8,2951.4,2.4781]
[1767068511060,2.4142,2952.0,2951.4,2.4781]
[1767068512141,2.4142,2951.9,2951.4,2.4781]
[1767068513142,3.38744038,2952.1,2951.4,2.4781]
[1767068513456,0.002,2952.2,2951.6,2.4781]
[1767068513635,2.4142,2952.3,2951.7,0.2532392]
[1767068513838,2.4142,2952.3,2951.8,2.4781]
[1767068520162,2.4162,2952.3,2951.8,2.4781]
[1767068522463,0.002,2952.6,2951.9,2.3341]
[1767068522765,0.002,2952.7,2952.0,2.3341]
[1767068522966,0.002,2952.7,2952.2,2.3341]
[1767068523264,2.4419,2953.0,2952.2,2.35451094]
[1767068524670,2.4419,2953.0,2952.3,2.3341]
[1767068527571,2.4419,2953.2,2952.4,2.3341]
[1767068527768,0.889,2953.2,2952.7,2.3341]
[1767068527959,2.4439,2953.4,2952.9,2.3341]